fUSD/lending_fUSD_20250417
["ID","MTS","AMOUNT","RATE_DAILY","PERIOD"]
[358215053,1744848405084,500.0,0.00057534,120]
[358215054,1744848405155,500.0,0.00063013,120]
[358215055,1744848405321,500.0,0.00060273,120]
[358215056,1744848405720,500.0,0.00063013,120]
[358215057,1744848405805,478.47,0.00065753,120]
[358215058,1744848406501,167.7167138,0.00054684,120]
[358215059,1744848446162,-163.49,0.00024932,2]
[358215060,1744848446184,-94.45759664,0.00027425,2]
[358215064,1744848632120,-155.54240336,0.00027425,2]
[358215065,1744848632130,-97.63959664,0.00027425,2]
[358215066,1744848632142,-152.36040336,0.00027425,2]
[358215067,1744848632151,-197.63959664,0.000275,3]
[358215068,1744848632165,-1.59140236,0.000275,3]
[358215069,1744848632174,-276.73,0.00028,2]
[358215070,1744848632184,-84.68704813,0.00032613,2]
[358215071,1744848632199,-87.37546887,0.00032613,2]
[358215072,1744848632208,-1577.68683762,0.00032777,2]
[358215073,1744848632219,-3218.65261911,0.00032823,2]
[358215074,1744848632229,-170.25028356,0.00032877,2]
[358215075,1744848632239,-400.0,0.00033199,3]
[358215076,1744848632248,-4401.49452785,0.000332,2]
[358215077,1744848632260,-9860.3378847,0.000332,2]
[358215078,1744848632281,-3603.00922789,0.000332,2]
[358215079,1744848632292,-370.04022624,0.000332,2]
[358215080,1744848632305,-1391.08289891,0.000332,2]
[358215081,1744848632316,-1347.98105897,0.000332,2]
[358215082,1744848632326,-500.0,0.00034433,5]
[358215083,1744848632336,-2415.26894103,0.00034433,2]
[358215086,1744848638048,-6039.20105897,0.00034433,2]
[358215087,1744848638058,-1831.39970283,0.00034433,2]
[358215088,1744848638070,-21008.80029717,0.00034433,2]
[358215089,1744848638080,-5492.98557478,0.00034433,2]
[358215090,1744848638093,-7281.83442522,0.00034433,2]
[358215091,1744848638102,-152.0,0.00035439,2]
[358215092,1744848638111,-1133.579,0.00035439,2]
[358215093,1744848638121,-560.0,0.00035808,3]
[358215094,1744848638130,-550.0,0.00036999,2]
[358215095,1744848638139,-3017.6,0.00037,2]
[358215096,1744848638148,-2999.99,0.00037,2]
[358215097,1744848638158,-3000.0,0.00037,2]
[358215098,1744848638167,-3000.0,0.00037,2]
[358215099,1744848638176,-3000.0,0.00037,2]
[358215100,1744848638184,-1570.31,0.00037,2]
[358215101,1744848638194,-462.77920189,0.00037517,2]
[358215102,1744848638203,-150.0,0.000376,2]
[358215103,1744848638212,-7342.57734644,0.00038236,2]
[358215104,1744848638221,-1036.928,0.00038246,2]
[358215105,1744848638231,-631.033,0.00038246,2]
[358215106,1744848638240,-4148.0,0.00038246,2]
[358215107,1744848638249,-576.0,0.00038246,2]
[358215108,1744848638258,-152.0,0.00038439,2]
[358215109,1744848638267,-783.0,0.00038622,5]
[358215110,1744848638276,-1000.0,0.00039913,5]
[358215111,1744848638286,-507.52378253,0.00041111,10]
[358215112,1744848638295,-500.0,0.00041111,10]
[358215113,1744848638304,-505.58599232,0.00041111,10]
[358215114,1744848638313,-586.72769109,0.00041111,7]
[358215115,1744848638323,-207.84012458,0.00041636,10]
[358215116,1744848638333,-500.0,0.00041636,10]
[358215117,1744848638342,-1097.0,0.00041658,5]
[358215118,1744848638351,-163.49,0.00043607,2]
[358215119,1744848638360,-269.1633,0.00043945,2]
[358215120,1744848638369,-3331.499,0.00043945,2]
[358215121,1744848638378,-374.31859152,0.00044045,2]
[358215122,1744848638388,-940.41043183,0.00044045,30]
[358215123,1744848638397,-233.23,0.00044227,2]
[358215124,1744848638406,-610.0,0.00044227,120]
[358215125,1744848638416,-1000.0,0.00044227,2]
[358215126,1744848638425,-3539.89,0.00044285,2]
[358215127,1744848638435,-9084.21,0.0004481,2]
[358215128,1744848638444,-23900.0,0.00044915,2]
[358215129,1744848638453,-1536.0,0.00044931,5]
[358215130,1744848638462,-151.0,0.00045,120]
[358215131,1744848638476,-1156.5,0.00045014,2]
[358215132,1744848638487,-4365.60590006,0.00045139,15]
[358215134,1744848638496,-141.76374586,0.00045167,6]
[358215136,1744848638506,-310.84151272,0.00045194,10]
[358215138,1744848638515,-202.00977091,0.00045194,10]
[358215140,1744848638523,-153.22214321,0.00045194,10]
[358215142,1744848638533,-616.25,0.00045239,2]
[358215144,1744848638543,-7970.83,0.00045239,2]
[358215146,1744848638552,-1046.68,0.00045239,2]
[358215148,1744848638561,-1000.0,0.00045239,120]
[358215150,1744848638570,-500.0,0.0004526,2]
[358215152,1744848638580,-500.0,0.00045619,2]
[358215154,1744848638589,-239.5104396,0.00045619,10]
[358215156,1744848638599,-152.97972657,0.00045619,10]
[358215158,1744848638608,-500.0,0.00045619,10]
[358215160,1744848638617,-153.04174079,0.00045619,10]
[358215162,1744848638626,-280.11937717,0.00045619,10]
[358215164,1744848638636,-263.60750689,0.00045619,10]
[358215166,1744848638645,-500.0,0.00045619,10]
[358215167,1744848638655,-168.65069957,0.00045619,10]
[358215170,1744848638664,-157.25437071,0.00045619,10]
[358215171,1744848638673,-500.0,0.00045619,2]
[358215173,1744848638683,-1218.98,0.00045925,2]
[358215175,1744848638692,-500.96791365,0.00046591,10]
[358215177,1744848638702,-1999.9863103,0.00046794,4]
[358215179,1744848638711,-150.0,0.0004703,2]
[358215181,1744848638720,-150.0,0.0004703,2]
[358215183,1744848638730,-661.43706484,0.0004703,2]
[358215186,1744848638743,-567.13104102,0.0004703,2]
[358215188,1744848638752,-9084.21,0.0004705,2]
[358215190,1744848638762,-2727.8,0.00047112,2]
[358215192,1744848638771,-259.79527337,0.00047116,10]
[358215194,1744848638780,-305.64175168,0.00047688,10]
[358215196,1744848638789,-200.0,0.00047843,2]
[358215197,1744848638798,-201.34,0.00047843,2]
[358215200,1744848638808,-500.0,0.000479,2]
[358215201,1744848638817,-1257.13,0.00047974,5]
[358215202,1744848638827,-1218.98,0.00048189,2]
[358215204,1744848638837,-2151.0,0.00048462,5]
[358215206,1744848638847,-1000.0,0.0004869,2]
[358215208,1744848638856,-1000.0,0.0004878,2]
[358215210,1744848638866,-1040.81238811,0.0004878,2]
[358215215,1744848638909,-2353.37527564,0.0004878,2]
[358215217,1744848638921,-430.99856786,0.0004878,2]
[358215219,1744848638933,-15886.33186839,0.0004878,2]
[358215220,1744848638943,-212.0,0.0004879,2]
[358215221,1744848638953,-12240.45149181,0.0004879,2]
[358215222,1744848638964,-1036.01785492,0.0004879,2]
[358215223,1744848638982,-1214.92789561,0.0004879,2]
[358215224,1744848638993,-1803.70000001,0.0004879,2]
[358215225,1744848639016,-257.26787767,0.0004879,2]
[358215226,1744848639027,-1785.71487998,0.0004879,2]
[358215227,1744848639036,-1034.4197,0.00049273,2]
[358215228,1744848639045,-170.21,0.00049278,2]
[358215229,1744848639055,-9084.21,0.00049291,2]
[358215230,1744848639064,-1101.6032,0.000494,2]
[358215231,1744848639074,-2058.41,0.000494,2]
[358215232,1744848639085,-772.0917,0.000494,2]
[358215233,1744848639095,-608.95979027,0.00049473,10]
[358215234,1744848639104,-500.0,0.00049473,10]
[358215235,1744848639114,-500.0,0.00049473,10]
[358215236,1744848639123,-160.04105987,0.00049473,10]
[358215237,1744848639132,-500.0,0.00049473,10]
[358215238,1744848639142,-154.69289428,0.00049473,10]
[358215239,1744848639151,-500.0,0.00049473,7]
[358215240,1744848639160,-500.0,0.00049473,10]
[358215241,1744848639170,-160.07077911,0.00049473,2]
[358215242,1744848639179,-159.95065559,0.00049473,10]
[358215243,1744848639188,-26379.6006709,0.0004949,3]
[358215244,1744848639198,-500.0,0.00049499,7]
[358215245,1744848639207,-500.0,0.00049499,7]
[358215246,1744848639217,-500.0,0.00049499,7]
[358215247,1744848639226,-500.0,0.00049499,7]
[358215248,1744848639235,-500.0,0.00049499,7]
[358215249,1744848639244,-223.54658506,0.00049499,7]
[358215250,1744848639254,-500.0,0.00049499,7]
[358215251,1744848639263,-500.0,0.00049499,7]
[358215252,1744848639271,-500.0,0.00049499,7]
[358215253,1744848639281,-500.0,0.00049499,7]
[358215254,1744848639290,-500.0,0.00049499,7]
[358215255,1744848639300,-500.0,0.00049499,7]
[358215256,1744848639309,-115240.22144927,0.000495,7]
[358215257,1744848639319,-169.7947322,0.00049631,28]
[358215258,1744848639328,-5305.20724935,0.00049731,15]
[358215259,1744848639339,-1000.0,0.00049755,120]
[358215260,1744848639348,-467.81380764,0.00049932,10]
[358215261,1744848639358,-4365.60589997,0.00049932,15]
[358215262,1744848639367,-500.0,0.00049973,10]
[358215263,1744848639379,-1000.0,0.00049989,20]
[358215264,1744848639388,-1000.0,0.00049989,20]
[358215265,1744848639398,-600.0,0.00049989,2]
[358215266,1744848639407,-600.0,0.00049989,2]
[358215267,1744848639417,-600.0,0.00049989,2]
[358215268,1744848639426,-183.04237744,0.00049989,2]
[358215269,1744848639435,-233.0,0.0005,120]
[358215270,1744848639564,-194.0,0.0005,120]
[358215271,1744848639575,-151.0,0.0005,100]
[358215272,1744848639585,-660.37,0.00050281,2]
[358215273,1744848639595,-1218.98,0.00050453,2]
[358215274,1744848639604,-155.0,0.000505,120]
[358215275,1744848639614,-1000.0,0.00051098,10]
[358215276,1744848639623,-622.07954752,0.00051098,2]
[358215277,1744848639632,-9084.21,0.00051531,2]
[358215278,1744848639642,-212.0,0.0005179,2]
[358215279,1744848639651,-302.1493593,0.00051973,10]
[358215280,1744848639660,-276.67,0.00051999,2]
[358215281,1744848639670,-233.0,0.00052,120]
[358215282,1744848639680,-194.0,0.00052,120]
[358215283,1744848639690,-770.08716838,0.00052,30]
[358215284,1744848639699,-1946.0,0.00052271,10]
[358215285,1744848639709,-500.0,0.0005255,5]
[358215286,1744848639718,-26379.6006709,0.00052706,4]
[358215287,1744848639728,-1218.98,0.00052717,2]
[358215288,1744848639738,-1000.0,0.000529,2]
[358215289,1744848639748,-155.0,0.00053,120]
[358215290,1744848639758,-183.0,0.00053,120]
[358215291,1744848639768,-660.37,0.00053413,2]
[358215292,1744848639778,-9084.21,0.00053771,2]
[358215293,1744848639788,-233.0,0.00054,120]
[358215294,1744848639798,-194.0,0.00054,120]
[358215295,1744848639807,-2000.0,0.000542,2]
[358215296,1744848639817,-2109.10838072,0.00054276,21]
[358215297,1744848639827,-325.0,0.000545,2]
[358215298,1744848639837,-4365.60589997,0.00054724,15]
[358215299,1744848639847,-18495.67746886,0.00054743,4]
[358215300,1744848639859,-2274.40999996,0.00054743,4]
[358215320,1744848641762,-919.39818052,0.00054743,4]
[358215321,1744848641775,-4690.11502156,0.00054743,4]
[358215322,1744848641785,-1058.33457973,0.00054745,4]
[358215326,1744848643219,-151.0,0.00045,120]
[358215327,1744848643230,-556.3898016,0.00054745,4]
[358215425,1744848644482,-672.54591315,0.00054745,4]
[358215426,1744848644493,-393.40217175,0.00054745,4]
[358215427,1744848644508,-3912.29665833,0.00054745,4]
[358215430,1744848646117,-252.0,0.00054745,4]
[358215431,1744848646129,-545.707998,0.00054745,4]
[358215432,1744848646140,-1229.64830891,0.00054745,4]
[358215433,1744848646189,-471.77,0.00054745,4]
[358215434,1744848646201,-1902.7362582,0.00054745,4]
[358215435,1744848646212,-435.21102169,0.00054745,4]
[358215436,1744848646255,-4974.21265848,0.00054745,4]
[358215437,1744848646267,-385.79700001,0.00054745,4]
[358215457,1744848787395,-218.6783,0.00024932,2]
[358215458,1744848842283,-250.0,0.00024932,2]
[358215459,1744848843680,-193.83217837,0.00024932,2]
[358215460,1744848906822,-218.04887665,0.00024932,2]
[358215461,1744848915743,-86.74064498,0.00024932,2]
[358215462,1744848915767,-86.15590113,0.00027425,2]
[358215464,1744849163871,250.0,0.00017,2]
[358215465,1744849165706,-236.50147488,0.00019,2]
[358215466,1744849176404,-63.49852512,0.00019,2]
[358215467,1744849176426,-96.7727504,0.00021,2]
[358215468,1744849510850,550.0,0.000154,2]
[358215469,1744849510874,800.0,0.000154,2]
[358215470,1744849510899,800.0,0.000154,2]
[358215471,1744849510923,288.66377096,0.000154,2]
[358215472,1744849520556,511.33622904,9e-05,2]
[358215473,1744849520579,332.20681278,9e-05,2]
[358215474,1744849526297,467.79318722,0.000108,2]
[358215475,1744849526322,523.71221887,0.000108,2]
[358215476,1744849528692,276.28778113,0.00011,2]
[358215477,1744849528722,694.16031337,0.00011,2]
[358215478,1744849537189,3070.80644895,9e-05,2]
[358215479,1744849555484,470.36148998,6.94e-05,2]
[358215480,1744849626138,-247.0268839,0.00021,2]
[358215481,1744849630816,-260.07878922,0.00019,3]
[358215485,1744849698925,805.34125131,0.000135,2]
[358215486,1744849699059,296.47738688,0.000125,2]
[358215487,1744849715837,215.98932695,0.0001,2]
[358215488,1744849716588,-202.05440523,0.00019,3]
[358215489,1744849717315,2010.95190312,0.000149,2]
[358215490,1744849722854,150.73366629,0.000154,2]
[358215491,1744849726802,1361.91356777,0.00010136,2]
[358215495,1744849757071,-5767.41528777,0.00019,3]
[358215496,1744849757093,-476.57770162,0.0002,2]
[358215499,1744849769089,-180.55865608,0.0002,2]
[358215500,1744849824126,-800.0,0.0002,2]
[358215504,1744849832162,-42.8636423,0.0002,2]
[358215505,1744849832171,-190.17704303,0.000209,2]
[358215506,1744849832178,-6.2003657,0.00021,2]
[358215507,1744849832185,-236.26648958,0.00023,2]
[358215508,1744849832271,-163.73351042,0.00023,2]
[358215509,1744849832282,-540.79,0.00024,5]
[358215510,1744849832291,-230.82,0.00024754,2]
[358215511,1744849832301,-1983.04237644,0.0002488,7]
[358215512,1744849832311,-157.31,0.00024932,2]
[358215513,1744849832320,-450.0,0.00025,2]
[358215514,1744849832330,-168.18813056,0.00026973,2]
[358215515,1744849832339,-500.0,0.00027,2]
[358215516,1744849832348,-182.36809881,0.00027,2]
[358215517,1744849832358,-163.84409887,0.00027425,2]
[358215518,1744849832368,-550.0,0.00029,2]
[358215519,1744849832378,-152.92,0.00029,2]
[358215520,1744849832387,-967.3,0.00030829,2]
[358215521,1744849832396,-400.0,0.00030999,2]
[358215522,1744849832406,-600.0,0.00031,2]
[358215523,1744849832416,-301.999999,0.00031,2]
[358215524,1744849832425,-650.0,0.00033,2]
[358215525,1744849832434,-560.0,0.00033515,3]
[358215526,1744849832443,-700.0,0.00035,2]
[358215527,1744849832452,-783.0,0.00036236,3]
[358215528,1744849832461,-967.3,0.00036727,2]
[358215529,1744849832470,-713.0,0.00036999,2]
[358215530,1744849832479,-750.0,0.00037,2]
[358215531,1744849832488,-3017.59,0.00037,2]
[358215532,1744849832497,-2999.98,0.00037,2]
[358215533,1744849832506,-2999.99,0.00037,2]
[358215534,1744849832515,-2999.99,0.00037,2]
[358215535,1744849832524,-3000.0,0.00037,2]
[358215536,1744849832533,-1570.35,0.00037,2]
[358215537,1744849832542,-7342.57734644,0.00038136,2]
[358215538,1744849832551,-1438.0,0.00038146,2]
[358215539,1744849832560,-545.0,0.00038146,2]
[358215540,1744849832569,-1279.0,0.00038146,2]
[358215541,1744849832577,-897.0,0.00038146,2]
[358215542,1744849832584,-1328.0,0.00038146,2]
[358215543,1744849832591,-152.0,0.00038146,2]
[358215544,1744849832599,-2047.0,0.00038146,2]
[358215545,1744849832607,-1288.0,0.00038146,2]
[358215546,1744849832617,-157.31,0.00038938,2]
[358215547,1744849832626,-207.84012458,0.00038967,5]
[358215548,1744849832636,-500.0,0.00038967,5]
[358215549,1744849832645,-310.84151272,0.00038967,5]
[358215550,1744849832654,-500.0,0.00038967,2]
[358215551,1744849832663,-157.25437071,0.00038967,5]
[358215552,1744849832672,-800.0,0.00039,2]
[358215553,1744849832681,-1097.0,0.00039178,5]
[358215554,1744849832690,-150.0,0.00039609,2]
[358215555,1744849832699,-1530.40907874,0.0004,10]
[358215556,1744849832711,-496.59156997,0.0004,10]
[358215559,1744849832727,-1176.66638378,0.0004,10]
[358215561,1744849832737,-5021.91301705,0.0004,30]
[358215563,1744849832747,-152.97972657,0.00040171,5]
[358215565,1744849832757,-500.0,0.00040171,5]
[358215567,1744849832766,-150.0,0.00040667,2]
[358215569,1744849832776,-850.0,0.00041,2]
[358215571,1744849832786,-168.65069957,0.0004111,10]
[358215573,1744849832795,-305.64175168,0.0004111,10]
[358215575,1744849832805,-507.52378253,0.0004111,10]
[358215577,1744849832814,-142.89689475,0.0004111,7]
[358215579,1744849832826,-443.83079634,0.0004111,7]
[358215581,1744849832835,-396.15920366,0.0004113,10]
[358215593,1744849838243,-462.77920189,0.00027045,2]
[358215594,1744849838259,-1133.579,0.00038146,2]
[358215595,1744849838268,-109.42678866,0.0004113,10]
[358215596,1744849838278,-500.0,0.0004113,10]
[358215597,1744849838292,-153.22214321,0.0004113,10]
[358215598,1744849838301,-637.49180219,0.0004113,10]
[358215599,1744849838311,-500.0,0.0004113,10]
[358215600,1744849838323,-162.36483299,0.0004113,10]
[358215601,1744849838332,-239.5104396,0.0004113,10]
[358215602,1744849838342,-263.60750689,0.0004113,10]
[358215603,1744849838351,-280.11937717,0.0004113,10]
[358215604,1744849838362,-500.0,0.0004113,2]
[358215605,1744849838371,-631.033,0.00041146,2]
[358215606,1744849838381,-152.0,0.00041146,2]
[358215607,1744849838391,-1036.928,0.00041146,2]
[358215608,1744849838400,-500.0,0.00041525,10]
[358215609,1744849838410,-150.0,0.00041725,2]
[358215610,1744849838420,-582.0,0.000421,3]
[358215611,1744849838429,-1000.0,0.00042123,2]
[358215612,1744849838439,-1536.0,0.00042358,5]
[358215613,1744849838448,-967.3,0.00042624,2]
[358215614,1744849838456,-150.0,0.00042783,2]
[358215615,1744849838465,-900.0,0.00043,2]
[358215616,1744849838475,-14000.0,0.0004321,2]
[358215617,1744849838484,-1002.3,0.00043243,2]
[358215618,1744849838494,-2000.0,0.00043243,120]
[358215619,1744849838503,-200.0,0.00043243,2]
[358215620,1744849838512,-150.0,0.00043841,2]
[358215621,1744849838521,-874.04845902,0.00044036,2]
[358215623,1744849838530,-4850.73132989,0.00044036,2]
[358215625,1744849838540,-3358.95760689,0.00044036,120]
[358215627,1744849838549,-12148.51574292,0.00044036,2]
[358215629,1744849838559,-34615.61141422,0.00044036,7]
[358215631,1744849838567,-917.80490126,0.00044036,3]
[358215633,1744849838576,-2048.93150152,0.00044036,3]
[358215635,1744849838585,-1106.10667461,0.00044036,2]
[358215637,1744849838594,-500.96791365,0.00044446,10]
[358215639,1744849838604,-830.11131114,0.00044446,2]
[358215641,1744849838613,-150.0,0.00044899,2]
[358215643,1744849838622,-151.0,0.00045,120]
[358215644,1744849838631,-950.0,0.00045,2]
[358215646,1744849838640,-202.8769722,0.00045,120]
[358215648,1744849838649,-259.79527337,0.00045651,10]
[358215649,1744849838658,-2151.0,0.00045797,5]
[358215650,1744849838667,-329.09363466,0.000458,10]
[358215651,1744849838679,-607.18471712,0.000458,10]
[358215652,1744849838688,-500.0,0.000458,10]
[358215653,1744849838697,-500.0,0.000458,10]
[358215654,1744849838706,-500.0,0.000458,10]
[358215655,1744849838716,-210.0677846,0.000458,10]
[358215656,1744849838727,-500.0,0.000458,5]
[358215657,1744849838738,-500.0,0.000458,10]
[358215658,1744849838750,-313.08390131,0.000458,10]
[358215659,1744849838760,-254.18139633,0.000458,7]
[358215660,1744849838772,-150.0,0.00045957,2]
[358215661,1744849838782,-150.0,0.000461,2]
[358215662,1744849838791,-185.83,0.0004612,2]
[358215663,1744849838801,-4844.34,0.00046523,2]
[358215664,1744849838811,-188.17,0.00046535,2]
[358215665,1744849838820,-269.1633,0.0004657,2]
[358215666,1744849838829,-181.0884,0.0004657,2]
[358215667,1744849838838,-1258.99,0.00046579,2]
[358215668,1744849838848,-233.23,0.00046579,2]
[358215669,1744849838862,-7970.83,0.00046579,2]
[358215670,1744849838871,-1000.0,0.00046579,120]
[358215671,1744849838882,-610.0,0.00046579,120]
[358215672,1744849838892,-1000.0,0.00046609,10]
[358215673,1744849838902,-23900.0,0.0004667,2]
[358215674,1744849838911,-504.72200144,0.00046673,10]
[358215675,1744849838921,-500.0,0.00046673,10]
[358215676,1744849838930,-504.03721051,0.00046673,10]
[358215677,1744849838941,-500.0,0.00046673,10]
[358215678,1744849838951,-500.0,0.00046673,10]
[358215679,1744849838960,-500.46037619,0.00046673,10]
[358215680,1744849838970,-500.0,0.00046673,10]
[358215681,1744849838980,-472.29649838,0.00046673,10]
[358215682,1744849838990,-1000.0,0.00047,2]
[358215683,1744849838999,-967.81380764,0.00047004,10]
[358215684,1744849839009,-150.0,0.00047015,2]
[358215685,1744849839019,-150.0,0.0004703,2]
[358215686,1744849839029,-150.0,0.0004703,2]
[358215687,1744849839039,-567.13104102,0.0004703,2]
[358215688,1744849839049,-661.43706484,0.0004703,2]
[358215689,1744849839058,-1633.09,0.00047233,2]
[358215690,1744849839068,-1000.0,0.00047388,2]
[358215691,1744849839078,-150.0,0.00048073,2]
[358215692,1744849839088,-250.0,0.00048257,2]
[358215693,1744849839097,-1035.661,0.00048258,83]
[358215694,1744849839108,-223.2,0.000484,7]
[358215695,1744849839117,-967.3,0.00048522,2]
[358215696,1744849839127,-156.95,0.00048628,120]
[358215697,1744849839139,-12136.6774,0.0004868,2]
[358215698,1744849839150,-500.0,0.0004868,2]
[358215699,1744849839160,-1050.0,0.00049,2]
[358215700,1744849839171,-150.0,0.00049131,2]
[358215701,1744849839180,-475.4044,0.00049227,2]
[358215702,1744849839190,-1218.98,0.00049327,2]
[358215703,1744849839200,-1257.13,0.00049445,5]
[358215704,1744849839209,-1846.0,0.00049514,5]
[358215705,1744849839219,-151.0,0.0005,100]
[358215706,1744849839228,-1306.3323817,0.0005,120]
[358215707,1744849839238,-160.000001,0.0005,2]
[358215708,1744849839247,-150.0,0.00050189,120]
[358215709,1744849839257,-203.1475,0.00050761,120]
[358215710,1744849839266,-1100.0,0.00051,2]
[358215711,1744849839276,-4841.84312967,0.00051145,15]
[358215712,1744849839285,-7267.37,0.00051245,2]
[358215713,1744849839295,-2727.8,0.00051245,2]
[358215714,1744849839304,-150.0,0.00051247,120]
[358215715,1744849839313,-1000.0,0.00051279,10]
[358215716,1744849839322,-499.3199782,0.00051279,10]
[358215717,1744849839332,-1000.0,0.00051279,5]
[358215718,1744849839341,-1000.0,0.00051279,10]
[358215719,1744849839360,-1218.98,0.00051591,2]
[358215720,1744849839375,-200.0,0.00051649,7]
[358215721,1744849839384,-577.82,0.00051964,2]
[358215722,1744849839395,-153.0,0.00052,120]
[358215723,1744849839405,-178.0,0.00052,120]
[358215724,1744849839414,-770.08716838,0.00052,30]
[358215725,1744849839424,-151.0,0.00052,120]
[358215726,1744849839434,-168.29228133,0.00052152,10]
[358215727,1744849839443,-501.32745172,0.00052152,10]
[358215728,1744849839453,-500.0,0.00052152,10]
[358215729,1744849839461,-505.33160687,0.00052152,10]
[358215730,1744849839469,-150.0,0.00052305,120]
[358215731,1744849839476,-500.0,0.0005263,2]
[358215732,1744849839483,-300.0,0.00052648,120]
[358215733,1744849839492,-1000.0,0.00052653,120]
[358215734,1744849839502,-157.31,0.00052945,120]
[358215735,1744849839512,-1150.0,0.00053,2]
[358215736,1744849839522,-150.0,0.00053363,120]
[358215737,1744849839531,-1000.0,0.000538,7]
[358215738,1744849839541,-7267.37,0.00053807,2]
[358215739,1744849839551,-151.0,0.00053808,120]
[358215740,1744849839560,-1218.98,0.00053855,2]
[358215741,1744849839569,-1500.0,0.000539,120]
[358215742,1744849839578,-5536.35397038,0.00054,5]
[358215743,1744849839604,-151.0,0.00033287,2]
[358215744,1744849839614,-15175.35771,0.00054,5]
[358215745,1744849839629,-94528.50976889,0.00054,5]
[358215746,1744849839639,-300.0,0.00054018,120]
[358215747,1744849839648,-212.0,0.00054187,2]
[358215748,1744849839658,-2154.6831458,0.00054227,4]
[358215749,1744849839668,-4841.84312958,0.0005434,15]
[358215750,1744849839677,-967.3,0.0005442,120]
[358215751,1744849839686,-150.0,0.00054421,120]
[358215752,1744849839696,-1002.3,0.00054476,2]
[358215753,1744849839706,-203.1475,0.00054479,120]
[358215754,1744849839716,-563.05869211,0.000545,120]
[358215755,1744849839726,-1000.0,0.000545,7]
[358215756,1744849839736,-501.89660451,0.0005454,6]
[358215757,1744849839745,-510.39,0.0005455,5]
[358215758,1744849839754,-1000.0,0.00054594,2]
[358215759,1744849839762,-192.89706377,0.00054594,32]
[358215760,1744849839772,-675.75328073,0.000546,32]
[358215761,1744849839781,-500.0,0.00054673,10]
[358215762,1744849839790,-500.0,0.00054673,10]
[358215763,1744849839799,-500.0,0.00054673,10]
[358215764,1744849839808,-500.0,0.00054673,10]
[358215765,1744849839817,-283.0528,0.00054674,2]
[358215766,1744849839826,-1000.0,0.00054674,2]
[358215767,1744849839835,-438.7393,0.00054674,2]
[358215768,1744849839844,-17537.46383049,0.00054674,4]
[358215769,1744849839860,-907.85399896,0.00054674,4]
[358215770,1744849839871,-7797.96253435,0.00054674,4]
[358215771,1744849839880,-158.79,0.00054684,120]
[358215772,1744849839890,-52486.5607277,0.00054684,4]
[358215773,1744849839900,-5660.94127254,0.00054685,15]
[358215774,1744849839909,-2556.25101796,0.00054685,26]
[358215775,1744849839918,-284.91728974,0.00054693,11]
[358215776,1744849839928,-120335.55504972,0.00054694,64]
[358215777,1744849840366,-151.0,0.00033287,2]
[358215778,1744849840376,-151.0,0.00033287,2]
[358215779,1744849840385,-93.24500002,0.00054694,64]
[358215780,1744849840485,-0.01891639,0.00054694,64]
[358215781,1744849840496,-294496.81028202,0.00054694,64]
[358215782,1744849840601,-11432.35765034,0.00054694,64]
[358215783,1744849840711,-75620.37134296,0.00054694,64]
[358215784,1744849840721,-6323.3981,0.00054694,2]
[358215785,1744849840731,-127649.4975,0.00054694,2]
[358215786,1744849840740,-329.0,0.000547,120]
[358215787,1744849840749,-192.0,0.000547,120]
[358215788,1744849840757,-26243.2803638,0.00054735,4]
[358215789,1744849840766,-5800.0,0.00054743,21]
[358215791,1744849840775,-200.0,0.00054745,15]